[Event "ESTCC-65 2025"]
[Site "Swidnica"]
[Date "2025.04.10"]
[Round "7"]
[White "Maier, Christian"]
[Black "Janocha, Wieslaw"]
[Result "0-1"]
[Annotator "ChessBase"]
[ECO "C47"]
[WhiteElo "2233"]
[BlackElo "2186"]
[PlyCount "86"]
[EventDate "2025.04.05"]
[EventType "team-tourn"]
[EventCountry "POL"]
[SourceTitle "playchess.com"]
[Source "ChessBase"]
[SourceQuality "1"]
[WhiteTeam "Germany"]
[BlackTeam "Poland"]
[WhiteTeamCountry "GER"]
[BlackTeamCountry "POL"]
[TimeControl "40/5400+30:1800+30"]

1. e4 {[%emt 0:00:09]} e5 {[%emt 0:00:11]} 2. Nf3 {[%emt 0:00:30]} Nf6 {[%emt 0:00:10]} 3. Nc3 {[%emt 0:00:42]} Nc6 {[%emt 0:00:08]} 4. d4 {[%emt 0:00:26]} exd4 {[%emt 0:00:09]} 5. Nxd4 {[%emt 0:00:06]} Bb4 {[%emt 0:00:07]} 6. Nxc6 {[%emt 0:00:09]} bxc6 {[%emt 0:00:11]} 7. Bd3 {[%emt 0:00:06]} d5 {[%emt 0:00:13]} 8. exd5 {[%emt 0:00:09]} O-O {[%emt 0:00:37]} 9. O-O {[%emt 0:00:23]} cxd5 {[%emt 0:00:08]} 10. h3 {[%emt 0:00:15]} c6 {[%emt 0:02:58]} 11. Qf3 {[%emt 0:01:30]} Rb8 {[%emt 0:05:00]} 12. Bf4 {[%emt 0:10:38]} Bd6 {[%emt 0:01:05]} 13. b3 {[%emt 0:02:10]} Be6 {[%emt 0:04:17]} 14. Rfe1 {[%emt 0:02:57]} Re8 {[%emt 0:04:50]} 15. Rad1 {[%emt 0:01:44]} Bxf4 {[%emt 0:09:07]} 16. Qxf4 {[%emt 0:03:55]} Qa5 {[%emt 0:02:08]} 17. Na4 {[%emt 0:04:06]} c5 {[%emt 0:03:02]} 18. Re5 {[%emt 0:22:11]} Bd7 {[%emt 0:02:27]} 19. Rg5 {[%emt 0:01:29]} h6 {[%emt 0:03:19]} 20. Rg3 {[%emt 0:17:40]} Kh8 {[%emt 0:11:48]} 21. Re3 {[%emt 0:05:40]} Bxa4 {[%emt 0:01:58]} 22. bxa4 {[%emt 0:00:12]} c4 {[%emt 0:00:30]} 23. Bf5 {[%emt 0:01:21]} Qxa4 {[%emt 0:04:58]} 24. Qc7 {[%emt 0:06:00]} Kg8 {[%emt 0:01:56]} 25. Rde1 {[%emt 0:01:26]} g6 {[%emt 0:15:34]} 26. Bxg6 {[%emt 0:01:37]} fxg6 {[%emt 0:00:59]} 27. Re7 {[%emt 0:00:05]} Rxe7 {[%emt 0:00:51]} 28. Rxe7 {[%emt 0:00:06]} Re8 {[%emt 0:07:57]} 29. Rg7+ {[%emt 0:01:54]} Kh8 {[%emt 0:00:05]} 30. Rxg6 {[%emt 0:03:11]} Qd7 {[%emt 0:01:01]} 31. Rxh6+ {[%emt 0:00:20]} Kg7 {[%emt 0:00:34]} 32. Qf4 {[%emt 0:00:17]} Re1+ {[%emt 0:02:25]} 33. Kh2 {[%emt 0:00:06]} Qe6 {[%emt 0:00:04]} 34. Qg5+ {[%emt 0:02:33]} Kf7 {[%emt 0:00:01]} 35. f4 {[%emt 0:00:26]} d4 {[%emt 0:01:05]} 36. Qg6+ {[%emt 0:05:40]} Ke7 {[%emt 0:00:02]} 37. Qg7+ {[%emt 0:00:11]} Qf7 {[%emt 0:00:11]} 38. Qg5 {[%emt 0:00:15]} Re6 {[%emt 0:05:45]} 39. Qc5+ {[%emt 0:01:48]} Rd6 {[%emt 0:01:12]} 40. Qxa7+ {[%emt 0:00:00]} Kf8 {[%emt 0:00:00]} 41. Qc5 {[%emt 0:08:07]} Qe7 {[%emt 0:03:34]} 42. Qc8+ {[%emt 0:02:00]} Kg7 {[%emt 0:00:51]} 43. Qh8+ {[%emt 0:00:23]} Kf7 {[%emt 0:00:01]} 0-1

[Event "ESTCC-65 2025"]
[Site "Swidnica"]
[Date "2025.04.10"]
[Round "7"]
[White "Westerinen, Heikki M.J."]
[Black "Rooze, Jan"]
[Result "1-0"]
[Annotator "ChessBase"]
[ECO "B40"]
[WhiteElo "2209"]
[BlackElo "2198"]
[PlyCount "61"]
[EventDate "2025.04.05"]
[EventType "team-tourn"]
[EventCountry "POL"]
[SourceTitle "playchess.com"]
[Source "ChessBase"]
[SourceQuality "1"]
[WhiteTeam "Finland"]
[BlackTeam "Belgium"]
[WhiteTeamCountry "FIN"]
[BlackTeamCountry "BEL"]
[TimeControl "40/5400+30:1800+30"]

1. e4 {[%emt 0:00:05]} c5 {[%emt 0:00:06]} 2. Nf3 {[%emt 0:00:09]} e6 {[%emt 0:00:08]} 3. c3 {[%emt 0:00:18]} Nf6 {[%emt 0:00:06]} 4. Bd3 {[%emt 0:05:16]} Nc6 {[%emt 0:17:03]} 5. O-O {[%emt 0:02:07]} d5 {[%emt 0:02:05]} 6. e5 {[%emt 0:00:31]} Nd7 {[%emt 0:00:14]} 7. Bb5 {[%emt 0:04:43]} Be7 {[%emt 0:01:05]} 8. d4 {[%emt 0:00:25]} O-O {[%emt 0:01:40]} 9. Re1 {[%emt 0:06:10]} Re8 {[%emt 0:03:45]} 10. Bd3 {[%emt 0:06:00]} Nf8 {[%emt 0:00:16]} 11. Be3 {[%emt 0:06:48]} b6 {[%emt 0:00:57]} 12. Nbd2 {[%emt 0:00:57]} a5 {[%emt 0:03:09]} 13. a4 {[%emt 0:06:04]} Ba6 {[%emt 0:01:33]} 14. Bc2 {[%emt 0:00:33]} cxd4 {[%emt 0:01:33]} 15. Bxd4 {[%emt 0:00:14]} Rc8 {[%emt 0:02:28]} 16. Nf1 {[%emt 0:00:54]} Nxd4 {[%emt 0:05:26]} 17. Nxd4 {[%emt 0:00:21]} Ng6 {[%emt 0:02:17]} 18. Qh5 {[%emt 0:04:58]} Rc7 {[%emt 0:18:23]} 19. Rad1 {[%emt 0:10:53]} Rf8 {[%emt 0:06:02]} 20. Ne3 {[%emt 0:04:52]} Bc5 {[%emt 0:02:20]} 21. Nf3 {[%emt 0:02:06]} Qe8 {[%emt 0:10:01]} 22. Ng4 {[%emt 0:20:23]} Be7 {[%emt 0:04:27]} 23. Re3 {[%emt 0:00:48]} Qd8 {[%emt 0:03:59]} 24. Nd4 {[%emt 0:01:06]} Bg5 {[%emt 0:11:25]} 25. Rh3 {[%emt 0:01:15]} h6 {[%emt 0:00:11]} 26. Bxg6 {[%emt 0:02:33]} fxg6 {[%emt 0:00:11]} 27. Qxg6 {[%emt 0:00:11]} Qe8 {[%emt 0:01:09]} 28. Nxh6+ {[%emt 0:03:24]} Bxh6 {[%emt 0:00:11]} 29. Rxh6 {[%emt 0:00:13]} Qxg6 {[%emt 0:00:57]} 30. Rxg6 {[%emt 0:00:02]} Kf7 {[%emt 0:00:31]} 31. Rxg7+ {[%emt 0:01:17]} 1-0

[Event "ESTCC-65 2025"]
[Site "Swidnica"]
[Date "2025.04.10"]
[Round "7"]
[White "Goormachtigh, Johan"]
[Black "Joentausta, Hannu"]
[Result "1/2-1/2"]
[Annotator "ChessBase"]
[ECO "E11"]
[WhiteElo "2207"]
[BlackElo "2081"]
[PlyCount "81"]
[EventDate "2025.04.05"]
[EventType "team-tourn"]
[EventCountry "POL"]
[SourceTitle "playchess.com"]
[Source "ChessBase"]
[SourceQuality "1"]
[WhiteTeam "Belgium"]
[BlackTeam "Finland"]
[WhiteTeamCountry "BEL"]
[BlackTeamCountry "FIN"]
[TimeControl "40/5400+30:1800+30"]

1. d4 {[%emt 0:00:11]} Nf6 {[%emt 0:00:06]} 2. c4 {[%emt 0:00:36]} e6 {[%emt 0:00:08]} 3. Nf3 {[%emt 0:00:40]} Bb4+ {[%emt 0:00:19]} 4. Bd2 {[%emt 0:00:31]} c5 {[%emt 0:00:11]} 5. Bxb4 {[%emt 0:01:18]} cxb4 {[%emt 0:00:04]} 6. g3 {[%emt 0:00:26]} O-O {[%emt 0:00:12]} 7. Bg2 {[%emt 0:00:06]} d6 {[%emt 0:01:21]} 8. O-O {[%emt 0:00:20]} Qc7 {[%emt 0:03:28]} 9. Qd3 {[%emt 0:06:21]} a5 {[%emt 0:01:39]} 10. Nbd2 {[%emt 0:00:57]} Na6 {[%emt 0:01:42]} 11. Rfd1 {[%emt 0:12:38]} b6 {[%emt 0:17:37]} 12. Rac1 {[%emt 0:05:13]} Bb7 {[%emt 0:03:31]} 13. Ne1 {[%emt 0:02:02]} Bxg2 {[%emt 0:01:28]} 14. Nxg2 {[%emt 0:00:07]} e5 {[%emt 0:03:30]} 15. Ne3 {[%emt 0:03:16]} exd4 {[%emt 0:08:32]} 16. Qxd4 {[%emt 0:02:29]} Nc5 {[%emt 0:01:01]} 17. Nf3 {[%emt 0:05:45]} Rad8 {[%emt 0:01:21]} 18. Nd5 {[%emt 0:06:45]} Nxd5 {[%emt 0:00:26]} 19. Qxd5 {[%emt 0:00:08]} Rfe8 {[%emt 0:01:05]} 20. Nd4 {[%emt 0:00:35]} Qd7 {[%emt 0:15:06]} 21. Rc2 {[%emt 0:10:56]} Ne6 {[%emt 0:07:09]} 22. Nxe6 {[%emt 0:06:08]} Rxe6 {[%emt 0:03:00]} 23. Rcd2 {[%emt 0:03:39]} Qc7 {[%emt 0:02:41]} 24. e3 {[%emt 0:01:36]} Kf8 {[%emt 0:06:39]} 25. b3 {[%emt 0:02:34]} Rc8 {[%emt 0:03:54]} 26. Qf5 {[%emt 0:04:51]} g6 {[%emt 0:01:48]} 27. Qf4 {[%emt 0:00:16]} Rd8 {[%emt 0:00:47]} 28. Rd5 {[%emt 0:01:53]} Kg8 {[%emt 0:01:20]} 29. Qd4 {[%emt 0:00:32]} Qc6 {[%emt 0:04:09]} 30. Qf4 {[%emt 0:06:49]} Qc7 {[%emt 0:00:53]} 31. Rb5 {[%emt 0:03:51]} Re5 {[%emt 0:02:56]} 32. Rxe5 {[%emt 0:08:53]} dxe5 {[%emt 0:00:03]} 33. Rxd8+ {[%emt 0:00:06]} Qxd8 {[%emt 0:00:03]} 34. Qxe5 {[%emt 0:00:06]} Qd1+ {[%emt 0:00:13]} 35. Kg2 {[%emt 0:00:00]} Qb1 {[%emt 0:00:49]} 36. Qb8+ {[%emt 0:00:11]} Kg7 {[%emt 0:00:02]} 37. Qxb6 {[%emt 0:00:10]} Qe4+ {[%emt 0:00:53]} 38. Kg1 {[%emt 0:02:10]} Qb1+ {[%emt 0:00:12]} 39. Kg2 {[%emt 0:00:05]} Qe4+ {[%emt 0:00:05]} 40. Kf1 {[%emt 0:00:00]} Qb1+ {[%emt 0:00:00]} 41. Kg2 {[%emt 0:04:45]} 1/2-1/2

[Event "ESTCC-65 2025"]
[Site "Swidnica"]
[Date "2025.04.10"]
[Round "7"]
[White "Vatter, Hans-Joachim"]
[Black "Czajkowski, Ryszard"]
[Result "1-0"]
[Annotator "ChessBase"]
[ECO "C02"]
[WhiteElo "2192"]
[BlackElo "1963"]
[PlyCount "57"]
[EventDate "2025.04.05"]
[EventType "team-tourn"]
[EventCountry "POL"]
[SourceTitle "playchess.com"]
[Source "ChessBase"]
[SourceQuality "1"]
[WhiteTeam "Germany"]
[BlackTeam "Poland"]
[WhiteTeamCountry "GER"]
[BlackTeamCountry "POL"]
[TimeControl "40/5400+30:1800+30"]

1. e4 {[%emt 0:00:12]} e6 {[%emt 0:00:10]} 2. d4 {[%emt 0:00:15]} d5 {[%emt 0:00:04]} 3. e5 {[%emt 0:00:15]} Qd7 {[%emt 0:01:41]} 4. Nf3 {[%emt 0:05:50]} b6 {[%emt 0:00:18]} 5. a4 {[%emt 0:00:10]} a5 {[%emt 0:02:09]} 6. Bb5 {[%emt 0:04:18]} c6 {[%emt 0:00:14]} 7. Bd3 {[%emt 0:00:02]} Ba6 {[%emt 0:00:25]} 8. O-O {[%emt 0:00:10]} Ne7 {[%emt 0:06:16]} 9. Na3 {[%emt 0:03:24]} Ng6 {[%emt 0:03:48]} 10. c3 {[%emt 0:02:26]} Be7 {[%emt 0:02:48]} 11. Re1 {[%emt 0:01:20]} Bxd3 {[%emt 0:00:48]} 12. Qxd3 {[%emt 0:00:03]} Qb7 {[%emt 0:03:18]} 13. b3 {[%emt 0:05:41]} Qa6 {[%emt 0:02:17]} 14. c4 {[%emt 0:01:46]} Nd7 {[%emt 0:07:15]} 15. Qc2 {[%emt 0:06:49]} Rc8 {[%emt 0:02:57]} 16. cxd5 {[%emt 0:01:24]} cxd5 {[%emt 0:00:46]} 17. Qd1 {[%emt 0:00:04]} O-O {[%emt 0:05:01]} 18. Nb5 {[%emt 0:01:14]} Nb8 {[%emt 0:09:11]} 19. h4 {[%emt 0:01:56]} Bb4 {[%emt 0:02:13]} 20. Bd2 {[%emt 0:04:07]} Nc6 {[%emt 0:03:08]} 21. h5 {[%emt 0:00:21]} Nge7 {[%emt 0:01:58]} 22. h6 {[%emt 0:00:11]} Ng6 {[%emt 0:07:57]} 23. hxg7 {[%emt 0:03:49]} Kxg7 {[%emt 0:00:27]} 24. Bg5 {[%emt 0:01:42]} Be7 {[%emt 0:06:22]} 25. Nd6 {[%emt 0:14:32]} Rcd8 {[%emt 0:08:47]} 26. Rc1 {[%emt 0:10:28]} Bxg5 {[%emt 0:00:48]} 27. Nxg5 {[%emt 0:00:37]} Nce7 {[%emt 0:00:55]} 28. Ndxf7 {[%emt 0:01:44]} Rc8 {[%emt 0:06:31]} 29. Qh5 {[%emt 0:00:53]} 1-0

[Event "ESTCC-65 2025"]
[Site "Swidnica"]
[Date "2025.04.10"]
[Round "7"]
[White "Zyla, Janusz"]
[Black "Miltner, Arndt"]
[Result "1-0"]
[Annotator "ChessBase"]
[ECO "C41"]
[WhiteElo "2181"]
[BlackElo "2232"]
[PlyCount "48"]
[EventDate "2025.04.05"]
[EventType "team-tourn"]
[EventCountry "POL"]
[SourceTitle "playchess.com"]
[Source "ChessBase"]
[SourceQuality "1"]
[WhiteTeam "Poland"]
[BlackTeam "Germany"]
[WhiteTeamCountry "POL"]
[BlackTeamCountry "GER"]
[TimeControl "40/5400+30:1800+30"]

1. e4 {[%emt 0:00:12]} d6 {[%emt 0:00:15]} 2. d4 {[%emt 0:00:18]} Nf6 {[%emt 0:00:17]} 3. Nc3 {[%emt 0:00:13]} e5 {[%emt 0:00:20]} 4. Nf3 {[%emt 0:00:32]} Nbd7 {[%emt 0:00:24]} 5. Bc4 {[%emt 0:00:22]} Be7 {[%emt 0:00:20]} 6. O-O {[%emt 0:00:17]} O-O {[%emt 0:00:27]} 7. a4 {[%emt 0:03:50]} a5 {[%emt 0:01:49]} 8. Re1 {[%emt 0:01:35]} exd4 {[%emt 0:01:47]} 9. Nxd4 {[%emt 0:00:13]} Nb6 {[%emt 0:01:11]} 10. Bf1 {[%emt 0:11:40]} Nfd7 {[%emt 0:02:21]} 11. h3 {[%emt 0:04:37]} Bf6 {[%emt 0:01:57]} 12. Be3 {[%emt 0:05:39]} Re8 {[%emt 0:04:30]} 13. Ndb5 {[%emt 0:03:37]} Nc5 {[%emt 0:07:09]} 14. Bxc5 {[%emt 0:15:28]} dxc5 {[%emt 0:00:17]} 15. e5 {[%emt 0:00:19]} Qxd1 {[%emt 0:00:40]} 16. Raxd1 {[%emt 0:00:22]} Bd8 {[%emt 0:00:14]} 17. Ne4 {[%emt 0:11:32]} c4 {[%emt 0:01:43]} 18. Nc5 {[%emt 0:01:21]} Rb8 {[%emt 0:00:51]} 19. g4 {[%emt 0:09:24]} Be6 {[%emt 0:05:05]} 20. Bg2 {[%emt 0:00:27]} Bc8 {[%emt 0:03:05]} 21. b3 {[%emt 0:03:00]} cxb3 {[%emt 0:04:42]} 22. cxb3 {[%emt 0:00:03]} c6 {[%emt 0:00:26]} 23. Nd6 {[%emt 0:00:37]} Rf8 {[%emt 0:00:35]} 24. Nxc8 {[%emt 0:01:08]} Nxc8 {[%emt 0:08:37]} 1-0

[Event "ESTCC-65 2025"]
[Site "Swidnica"]
[Date "2025.04.10"]
[Round "7"]
[White "Baker, Chris W"]
[Black "Higgie, Charles L"]
[Result "1/2-1/2"]
[Annotator "ChessBase"]
[ECO "A49"]
[WhiteElo "2151"]
[BlackElo "1992"]
[PlyCount "41"]
[EventDate "2025.04.05"]
[EventType "team-tourn"]
[EventCountry "POL"]
[SourceTitle "playchess.com"]
[Source "ChessBase"]
[SourceQuality "1"]
[WhiteTeam "England"]
[BlackTeam "England"]
[WhiteTeamCountry "ENG"]
[BlackTeamCountry "ENG"]
[TimeControl "40/5400+30:1800+30"]

1. d4 {[%emt 0:00:05]} Nf6 {[%emt 0:00:00]} 2. Nf3 {[%emt 0:00:31]} g6 {[%emt 0:01:07]} 3. g3 {[%emt 0:00:31]} Bg7 {[%emt 0:00:48]} 4. Bg2 {[%emt 0:00:18]} c5 {[%emt 0:00:13]} 5. O-O {[%emt 0:03:24]} cxd4 {[%emt 0:06:09]} 6. Nxd4 {[%emt 0:00:35]} d5 {[%emt 0:00:55]} 7. c4 {[%emt 0:00:51]} O-O {[%emt 0:01:09]} 8. cxd5 {[%emt 0:03:03]} Nxd5 {[%emt 0:00:43]} 9. Nb5 {[%emt 0:00:58]} Nb4 {[%emt 0:09:17]} 10. Qa4 {[%emt 0:07:25]} N8c6 {[%emt 0:04:31]} 11. a3 {[%emt 0:04:55]} Na6 {[%emt 0:01:18]} 12. N1c3 {[%emt 0:07:12]} Qa5 {[%emt 0:06:52]} 13. Qh4 {[%emt 0:06:18]} Be6 {[%emt 0:08:58]} 14. b4 {[%emt 0:09:46]} Naxb4 {[%emt 0:07:40]} 15. axb4 {[%emt 0:01:38]} Qxa1 {[%emt 0:00:17]} 16. Bh6 {[%emt 0:10:51]} Qa6 {[%emt 0:05:41]} 17. Bxg7 {[%emt 0:03:02]} Kxg7 {[%emt 0:00:17]} 18. Nc7 {[%emt 0:00:44]} Qc4 {[%emt 0:01:00]} 19. Qxc4 {[%emt 0:00:56]} Bxc4 {[%emt 0:00:09]} 20. Nxa8 {[%emt 0:00:18]} Rxa8 {[%emt 0:00:10]} 21. b5 {[%emt 0:02:00]} 1/2-1/2

[Event "ESTCC-65 2025"]
[Site "Swidnica"]
[Date "2025.04.10"]
[Round "7"]
[White "Vinke, Dietmar"]
[Black "Stuer, Marc"]
[Result "1/2-1/2"]
[Annotator "NA"]
[ECO "A85"]
[WhiteElo "2078"]
[BlackElo "2038"]
[PlyCount "56"]
[EventDate "2025.04.05"]
[EventType "team-tourn"]
[EventCountry "POL"]
[SourceTitle "playchess.com"]
[Source "ChessBase"]
[SourceQuality "1"]
[WhiteTeam "Finland"]
[BlackTeam "Belgium"]
[WhiteTeamCountry "FIN"]
[BlackTeamCountry "BEL"]
[TimeControl "40/5400+30:1800+30"]

1. d4 {[%emt 0:00:03]} f5 {[%emt 0:00:05]} 2. c4 {[%emt 0:00:14]} Nf6 {[%emt 0:00:11]} 3. Nc3 {[%emt 0:00:19]} g6 {[%emt 0:00:11]} 4. g3 {[%emt 0:00:14]} Bg7 {[%emt 0:00:05]} 5. Bg2 {[%emt 0:00:07]} O-O {[%emt 0:00:20]} 6. Nh3 {[%emt 0:00:07]} e6 {[%emt 0:00:58]} 7. O-O {[%emt 0:00:18]} d6 {[%emt 0:00:21]} 8. Nf4 {[%emt 0:20:18]} c6 {[%emt 0:08:07]} 9. Nd3 {[%emt 0:23:00]} Nbd7 {[%emt 0:20:27]} 10. Qc2 {[%emt 0:08:25]} e5 {[%emt 0:05:20]} 11. dxe5 {[%emt 0:00:56]} dxe5 {[%emt 0:00:27]} 12. e4 {[%emt 0:00:14]} Nxe4 {[%emt 0:07:07]} 13. Nxe4 {[%emt 0:16:54]} fxe4 {[%emt 0:00:15]} 14. Bxe4 {[%emt 0:00:06]} Nf6 {[%emt 0:01:06]} 15. Bg5 {[%emt 0:00:06]} Qd4 {[%emt 0:09:30]} 16. Bxf6 {[%emt 0:00:42]} Rxf6 {[%emt 0:07:44]} 17. Rfe1 {[%emt 0:19:01]} Be6 {[%emt 0:09:00]} 18. Rad1 {[%emt 0:04:59]} Raf8 {[%emt 0:02:54]} 19. Nf4 {[%emt 0:00:25]} Qxc4 {[%emt 0:00:36]} 20. Nxe6 {[%emt 0:00:16]} Qxe6 {[%emt 0:01:14]} 21. f3 {[%emt 0:00:14]} R6f7 {[%emt 0:05:46]} 22. b3 {[%emt 0:00:23]} Rd7 {[%emt 0:00:27]} 23. Rxd7 {[%emt 0:00:12]} Qxd7 {[%emt 0:00:14]} 24. Rd1 {[%emt 0:00:03]} Qe7 {[%emt 0:01:07]} 25. Qc4+ {[%emt 0:02:00]} Kh8 {[%emt 0:01:00]} 26. a4 {[%emt 0:01:04]} Rd8 {[%emt 0:00:27]} 27. Rxd8+ {[%emt 0:00:25]} Qxd8 {[%emt 0:00:46]} 28. Qd3 {[%emt 0:00:01]} Qxd3 1/2-1/2